fUSD/lending_fUSD_20250606
["ID","MTS","AMOUNT","RATE_DAILY","PERIOD"]
[364703688,1749212878405,10000.0,0.0002,2]
[364703689,1749212878683,10000.0,0.0002,2]
[364703690,1749212878707,10000.0,0.0002,2]
[364703691,1749212878729,10000.0,0.0002,2]
[364703692,1749212878751,10000.0,0.0002,2]
[364703693,1749212878773,10000.0,0.0002,2]
[364703694,1749212878794,10000.0,0.0002,2]
[364703695,1749212878816,10000.0,0.0002,2]
[364703696,1749212878837,10000.0,0.0002,2]
[364703697,1749212878858,10000.0,0.0002,2]
[364703698,1749212878881,10000.0,0.0002,2]
[364703699,1749212878902,10000.0,0.0002,2]
[364703700,1749212878923,10000.0,0.0002,2]
[364703701,1749212878946,10000.0,0.0002,2]
[364703702,1749212878967,10000.0,0.0002,2]
[364703703,1749212878987,10000.0,0.0002,2]
[364703704,1749212879007,10000.0,0.0002,2]
[364703705,1749212879026,10000.0,0.0002,2]
[364703706,1749212879047,10000.0,0.0002,2]
[364703707,1749212879067,10000.0,0.0002,2]
[364703708,1749212879089,10000.0,0.0002,2]
[364703709,1749212879110,10000.0,0.0002,2]
[364703710,1749212879130,10000.0,0.0002,2]
[364703711,1749212879150,10000.0,0.0002,2]
[364703712,1749212879171,10000.0,0.0002,2]
[364703713,1749212879192,10000.0,0.0002,2]
[364703714,1749212879213,10000.0,0.0002,2]
[364703715,1749212879233,10000.0,0.0002,2]
[364703716,1749212879254,10000.0,0.0002,2]
[364703717,1749212879281,21576.8473818,0.0002,2]
[364703737,1749212951429,2556.092557,7.945e-05,2]
[364703741,1749212952167,200.0,0.00035616,120]
[364703759,1749213031705,-151.0,0.00020508,2]
[364703760,1749213031716,-155.82,0.00023973,2]
[364703761,1749213031726,-263.73157139,0.00024932,2]
[364703771,1749213032102,-236.26842861,0.00024932,2]
[364703772,1749213032113,-5202.48009018,0.00027148,2]
[364703773,1749213032123,-459.25,0.00027164,2]
[364703775,1749213032135,-14147.46213792,0.0002802,2]
[364703777,1749213032145,-624.01585014,0.000289,20]
[364703778,1749213032155,-165.6,0.00028971,30]
[364703779,1749213032165,-1000.0,0.00028993,2]
[364703780,1749213032175,-796.33,0.00029041,2]
[364703781,1749213032185,-796.33,0.00029041,2]
[364703782,1749213032195,-1000.0,0.00029066,2]
[364703784,1749213032205,-796.33,0.00029141,2]
[364703786,1749213032214,-796.33,0.00029241,2]
[364703788,1749213032224,-921.68,0.00029241,2]
[364703790,1749213032233,-624.01585002,0.00029245,20]
[364703792,1749213032243,-159.828818,0.00029348,6]
[364703794,1749213032258,-459.25,0.00029428,2]
[364703796,1749213032268,-796.33,0.000295,2]
[364703798,1749213032277,-662.3,0.000295,2]
[364703800,1749213032286,-200.0,0.000295,10]
[364703802,1749213032296,-624.01585002,0.0002959,21]
[364703804,1749213032306,-500.0,0.000296,10]
[364703806,1749213032316,-800.0,0.000297,10]
[364703808,1749213032325,-1000.0,0.000298,10]
[364703810,1749213032335,-355.01822,0.0002986,2]
[364703812,1749213032345,-151.0,0.0002989,2]
[364703814,1749213032355,-207.4,0.0002989,2]
[364703816,1749213032365,-300.0,0.0002989,2]
[364703818,1749213032375,-300.0,0.0002989,2]
[364703820,1749213032384,-150.0,0.00029891,2]
[364703822,1749213032395,-1505.0,0.000299,2]
[364703824,1749213032405,-796.33,0.000299,2]
[364703826,1749213032416,-1300.0,0.000299,10]
[364703828,1749213032427,-150.0,0.00029902,2]
[364703831,1749213032437,-150.0,0.00029903,2]
[364703833,1749213032447,-150.0,0.00029917,2]
[364703835,1749213032457,-624.01585002,0.00029934,22]
[364703837,1749213032467,-150.0,0.00029949,2]
[364703838,1749213032477,-150.0,0.00029981,2]
[364703841,1749213032487,-2621.88124326,0.00029999,2]
[364703843,1749213032497,-1612.99,0.0003,2]
[364703845,1749213032512,-4222.85073994,0.0003,2]
[364703847,1749213032522,-3235.0,0.0003,2]
[364703849,1749213032532,-288.42828419,0.00030008,7]
[364703851,1749213032542,-204.27870971,0.00030009,2]
[364703853,1749213032551,-150.0,0.00030013,2]
[364703855,1749213032561,-150.0,0.00030014,2]
[364703857,1749213032571,-204.27870952,0.00030021,2]
[364703859,1749213032581,-1000.0,0.00030026,2]
[364703861,1749213032591,-150.0,0.00030027,7]
[364703863,1749213032602,-150.0,0.00030032,2]
[364703865,1749213032611,-204.27870952,0.00030032,2]
[364703867,1749213032622,-646.38363596,0.00030034,2]
[364703869,1749213032635,-204.27870952,0.00030044,2]
[364703871,1749213032647,-1173.3030991,0.00030045,2]
[364703873,1749213032657,-162.97674805,0.00030046,2]
[364703875,1749213032667,-162.97674803,0.00030051,2]
[364703877,1749213032677,-164.08632327,0.00030054,2]
[364703879,1749213032687,-576.07075442,0.00030055,21]
[364703881,1749213032696,-162.97674803,0.00030055,2]
[364703883,1749213032706,-204.27870952,0.00030055,2]
[364703885,1749213032715,-162.97674803,0.0003006,2]
[364703887,1749213032725,-308.31824401,0.00030062,2]
[364703890,1749213032735,-244.41395534,0.00030064,2]
[364703892,1749213032744,-291.72847058,0.00030064,2]
[364703894,1749213032758,-162.97674803,0.00030064,2]
[364703896,1749213032769,-174.97167064,0.00030066,2]
[364703898,1749213032778,-204.27870952,0.00030067,2]
[364703900,1749213032788,-287.6013756,0.00030073,2]
[364703902,1749213032798,-150.0,0.00030078,7]
[364703904,1749213032808,-204.27870952,0.00030078,2]
[364703906,1749213032817,-150.0,0.00030082,7]
[364703908,1749213032828,-150.0,0.00030083,2]
[364703910,1749213032837,-150.0,0.00030085,2]
[364703912,1749213032849,-150.0,0.00030085,2]
[364703914,1749213032859,-150.0,0.00030087,2]
[364703916,1749213032869,-204.27870952,0.0003009,2]
[364703918,1749213032879,-150.0,0.00030091,2]
[364703920,1749213032888,-150.0,0.00030095,7]
[364703922,1749213032898,-150.0,0.00030096,7]
[364703924,1749213032908,-159.0,0.000301,22]
[364703926,1749213032917,-43864.12657663,0.000301,2]
[364704361,1749213037605,-8093.05366306,0.000301,2]
[364704384,1749213037826,-2924.64431113,0.000301,2]
[364704601,1749213039915,-500.22559994,0.000301,2]
[364704603,1749213039926,-22840.28897608,0.000301,2]
[364704606,1749213039937,-521.5,0.000301,2]
[364704608,1749213039948,-1358.44000002,0.000301,2]
[364704613,1749213039987,-35955.23334281,0.000301,2]
[364704615,1749213039998,-376.0,0.000301,2]
[364704617,1749213040011,-768.0,0.000301,2]
[364704619,1749213040021,-204.27870952,0.00030101,2]
[364704621,1749213040030,-1507.839,0.00030109,25]
[364704623,1749213040040,-150.0,0.00030109,7]
[364704625,1749213040050,-150.0,0.0003011,7]
[364704626,1749213040059,-204.27870952,0.00030113,2]
[364704628,1749213040068,-1173.30309905,0.0003012,2]
[364704630,1749213040078,-150.0,0.00030123,2]
[364704632,1749213040087,-204.27870952,0.00030124,2]
[364704634,1749213040096,-204.27870952,0.00030136,2]
[364704636,1749213040105,-14304.61745566,0.00030136,2]
[364704638,1749213040114,-176.32,0.00030137,80]
[364704640,1749213040124,-151.0,0.0003014,7]
[364704642,1749213040134,-151.0,0.0003014,7]
[364704644,1749213040143,-300.66297,0.0003014,7]
[364704646,1749213040152,-151.0,0.0003014,7]
[364704648,1749213040162,-300.66297,0.0003014,7]
[364704650,1749213040172,-151.0,0.0003014,7]
[364704652,1749213040181,-151.0,0.0003014,7]
[364704654,1749213040190,-151.0,0.0003014,7]
[364704656,1749213040200,-151.0,0.0003014,7]
[364704658,1749213040209,-180.094485,0.0003014,7]
[364704660,1749213040218,-261.519962,0.0003014,7]
[364704662,1749213040227,-261.519962,0.0003014,7]
[364704664,1749213040237,-151.0,0.0003014,7]
[364704666,1749213040247,-157.037861,0.0003014,7]
[364704668,1749213040256,-157.037861,0.0003014,7]
[364704670,1749213040267,-151.0,0.0003014,7]
[364704672,1749213040276,-151.0,0.00030143,7]
[364704674,1749213040286,-212.153478,0.00030143,7]
[364704676,1749213040295,-300.66297,0.00030143,7]
[364704678,1749213040304,-300.66297,0.00030143,7]
[364704680,1749213040314,-151.0,0.00030143,7]
[364704682,1749213040323,-151.0,0.00030143,7]
[364704684,1749213040332,-151.0,0.00030143,7]
[364704686,1749213040343,-151.0,0.00030143,7]
[364704688,1749213040353,-261.519962,0.00030143,7]
[364704690,1749213040362,-261.519962,0.00030143,7]
[364704692,1749213040372,-157.037861,0.00030143,7]
[364704694,1749213040382,-157.037861,0.00030143,7]
[364704696,1749213040391,-151.0,0.00030143,7]
[364704698,1749213040401,-150.0,0.00030144,2]
[364704700,1749213040412,-151.88,0.00030144,2]
[364704702,1749213040422,-50384.5497123,0.00030145,2]
[364704704,1749213040432,-150.0,0.00030146,7]
[364704706,1749213040441,-500.0,0.00030146,7]
[364704708,1749213040450,-150.0,0.00030146,7]
[364704710,1749213040460,-204.27870952,0.00030147,2]
[364704712,1749213040470,-647.20709056,0.00030153,7]
[364704714,1749213040479,-500.0,0.00030153,7]
[364704716,1749213040488,-500.0,0.00030153,2]
[364704718,1749213040498,-495.60615707,0.00030153,2]
[364704720,1749213040510,-500.0,0.00030153,2]
[364704722,1749213040521,-500.0,0.00030153,2]
[364704724,1749213040531,-157.67691862,0.00030153,2]
[364704726,1749213040541,-512.93,0.00030154,7]
[364704728,1749213040551,-237619.48728017,0.00030154,2]
[364704941,1749213042653,-4795.37542534,0.00030154,2]
[364704952,1749213042755,-93482.13537649,0.00030154,2]
[364704954,1749213042768,-332085.036911,0.00030154,2]
[364704956,1749213042777,-204.14670972,0.00030154,2]
[364704958,1749213042787,-2424.2149851,0.00030155,2]
[364704960,1749213042796,-9433.8893491,0.00030155,2]
[364704962,1749213042805,-204.27870952,0.00030159,2]
[364704964,1749213042814,-2000.0,0.00030163,2]
[364704966,1749213042824,-512.93,0.00030163,7]
[364704968,1749213042834,-512.93,0.00030163,7]
[364704970,1749213042843,-512.93,0.00030163,7]
[364704972,1749213042856,-512.93,0.00030163,7]
[364704975,1749213042865,-512.93,0.00030163,7]
[364704977,1749213042875,-562.0,0.00030164,5]
[364704979,1749213042883,-151.0,0.00030164,7]
[364704981,1749213042892,-151.0,0.00030164,7]
[364704983,1749213042901,-151.0,0.00030164,7]
[364704985,1749213042910,-151.0,0.00030164,7]
[364704987,1749213042919,-234.638944,0.00030164,7]
[364704989,1749213042928,-234.638944,0.00030164,7]
[364704991,1749213042937,-151.0,0.00030164,7]
[364704993,1749213042946,-234.638944,0.00030164,7]
[364704995,1749213042955,-151.0,0.00030164,7]
[364704997,1749213042964,-234.638944,0.00030164,7]
[364704999,1749213042973,-254.332133,0.00030164,7]
[364705003,1749213042983,-151.0,0.00030164,7]
[364705006,1749213042992,-151.0,0.00030164,7]
[364705009,1749213043001,-151.0,0.00030164,7]
[364705011,1749213043014,-151.0,0.00030164,7]
[364705014,1749213043023,-151.0,0.00030164,7]
[364705017,1749213043032,-151.0,0.00030164,7]
[364705019,1749213043042,-151.0,0.00030164,7]
[364705021,1749213043051,-151.0,0.00030164,7]
[364705023,1749213043060,-151.0,0.00030164,7]
[364705025,1749213043070,-151.0,0.00030164,7]
[364705027,1749213043079,-271.307939,0.00030164,7]
[364705029,1749213043088,-271.307939,0.00030164,7]
[364705031,1749213043097,-271.307939,0.00030164,7]
[364705033,1749213043107,-271.307939,0.00030164,7]
[364705035,1749213043116,-271.307939,0.00030164,7]
[364705037,1749213043125,-271.307939,0.00030164,7]
[364705039,1749213043135,-271.307939,0.00030164,7]
[364705041,1749213043144,-271.307939,0.00030164,7]
[364705043,1749213043153,-151.0,0.00030164,7]
[364705045,1749213043162,-151.0,0.00030164,7]
[364705047,1749213043171,-151.0,0.00030164,7]
[364705049,1749213043181,-151.0,0.00030164,7]
[364705051,1749213043190,-151.0,0.00030164,7]
[364705053,1749213043199,-151.0,0.00030164,7]
[364705055,1749213043208,-151.0,0.00030164,7]
[364705057,1749213043217,-151.0,0.00030164,7]
[364705059,1749213043227,-151.0,0.00030164,7]
[364705062,1749213043236,-151.0,0.00030164,7]
[364705063,1749213043245,-185.297523,0.00030164,7]
[364705065,1749213043254,-151.0,0.00030164,7]
[364705067,1749213043269,-151.0,0.00030164,7]
[364705069,1749213043278,-151.0,0.00030164,7]
[364705071,1749213043288,-151.0,0.00030164,7]
[364705073,1749213043297,-151.0,0.00030164,7]
[364705075,1749213043306,-151.0,0.00030164,7]
[364705077,1749213043315,-151.0,0.00030164,7]
[364705079,1749213043324,-151.0,0.00030164,7]
[364705081,1749213043333,-151.0,0.00030164,7]
[364705083,1749213043342,-151.0,0.00030164,7]
[364705085,1749213043351,-151.0,0.00030164,7]
[364705087,1749213043360,-151.0,0.00030164,7]
[364705089,1749213043369,-151.0,0.00030164,7]
[364705091,1749213043378,-151.0,0.00030164,7]
[364705093,1749213043388,-151.0,0.00030164,7]
[364705095,1749213043397,-151.0,0.00030164,7]
[364705097,1749213043406,-151.0,0.00030164,7]
[364705099,1749213043415,-151.0,0.00030164,7]
[364705101,1749213043424,-151.0,0.00030164,7]
[364705103,1749213043434,-151.0,0.00030164,7]
[364705105,1749213043443,-151.0,0.00030164,7]
[364705107,1749213043452,-151.0,0.00030164,7]
[364705109,1749213043461,-300.66297,0.00030164,7]
[364705111,1749213043469,-300.66297,0.00030164,7]
[364705113,1749213043479,-300.66297,0.00030164,7]
[364705115,1749213043488,-300.66297,0.00030164,7]
[364705117,1749213043497,-300.66297,0.00030164,7]
[364705119,1749213043507,-300.66297,0.00030164,7]
[364705121,1749213043519,-151.0,0.00030164,7]
[364705123,1749213043528,-151.0,0.00030164,7]
[364705125,1749213043537,-270.668594,0.00030164,7]
[364705127,1749213043547,-151.0,0.00030164,7]
[364705129,1749213043556,-151.0,0.00030164,7]
[364705131,1749213043565,-151.0,0.00030164,7]
[364705133,1749213043575,-480.0,0.00030164,7]
[364705135,1749213043585,-151.0,0.00030164,7]
[364705137,1749213043596,-151.0,0.00030164,7]
[364705139,1749213043606,-151.0,0.00030164,7]
[364705141,1749213043616,-261.519962,0.00030164,7]
[364705143,1749213043626,-261.519962,0.00030164,7]
[364705145,1749213043636,-261.519962,0.00030164,7]
[364705147,1749213043645,-261.519962,0.00030164,7]
[364705149,1749213043654,-261.519962,0.00030164,7]
[364705151,1749213043664,-261.519962,0.00030164,7]
[364705153,1749213043674,-480.0,0.00030164,7]
[364705155,1749213043683,-480.0,0.00030164,7]
[364705157,1749213043693,-157.037861,0.00030164,7]
[364705159,1749213043702,-157.037861,0.00030164,7]
[364705161,1749213043712,-157.037861,0.00030164,7]
[364705163,1749213043721,-157.037861,0.00030164,7]
[364705165,1749213043730,-157.037861,0.00030164,7]
[364705167,1749213043739,-157.037861,0.00030164,7]
[364705169,1749213043748,-163.309374,0.00030164,7]
[364705171,1749213043761,-480.0,0.00030164,7]
[364705173,1749213043770,-480.0,0.00030164,7]
[364705175,1749213043779,-480.0,0.00030164,7]
[364705177,1749213043789,-480.0,0.00030164,7]
[364705179,1749213043798,-500.0,0.00030164,7]
[364705181,1749213043808,-500.0,0.00030164,7]
[364705183,1749213043817,-500.0,0.00030164,7]
[364705185,1749213043826,-500.0,0.00030164,7]
[364705187,1749213043835,-234.24412079,0.00030164,7]
[364705189,1749213043844,-480.0,0.00030164,7]
[364705191,1749213043854,-480.0,0.00030164,7]
[364705193,1749213043863,-488.82154599,0.00030164,7]
[364705195,1749213043872,-480.0,0.00030164,7]
[364705197,1749213043881,-481.30586123,0.00030164,7]
[364705199,1749213043891,-480.0,0.00030164,7]
[364705201,1749213043900,-480.0,0.00030164,7]
[364705203,1749213043909,-480.0,0.00030164,7]
[364705205,1749213043918,-480.0,0.00030164,7]
[364705207,1749213043927,-480.0,0.00030164,7]
[364705209,1749213043936,-480.33540273,0.00030164,7]
[364705211,1749213043945,-480.0,0.00030164,7]
[364705213,1749213043954,-518.51,0.00030164,7]
[364705215,1749213043964,-480.0,0.00030164,7]
[364705217,1749213043973,-490.1087129,0.00030164,7]
[364705219,1749213043982,-480.0,0.00030164,7]
[364705221,1749213043991,-487.54297005,0.00030164,7]
[364705223,1749213044000,-491.22145578,0.00030164,7]
[364705225,1749213044012,-736.77,0.00030164,7]
[364705227,1749213044021,-492.23874236,0.00030164,7]
[364705229,1749213044030,-480.0,0.00030164,7]
[364705231,1749213044039,-480.0,0.00030164,7]
[364705233,1749213044048,-480.0,0.00030164,7]
[364705235,1749213044057,-480.0,0.00030164,7]
[364705237,1749213044067,-480.0,0.00030164,7]
[364705239,1749213044076,-480.0,0.00030164,7]
[364705241,1749213044085,-720.53,0.00030164,7]
[364705243,1749213044095,-480.0,0.00030164,7]
[364705245,1749213044104,-569.32913755,0.00030164,7]
[364705247,1749213044113,-480.0,0.00030164,7]
[364705249,1749213044122,-480.0,0.00030164,7]
[364705251,1749213044131,-480.0,0.00030164,7]
[364705253,1749213044140,-480.0,0.00030164,7]
[364705255,1749213044149,-480.0,0.00030164,7]
[364705257,1749213044158,-440.0,0.00030164,7]
[364705259,1749213044167,-480.0,0.00030164,7]
[364705261,1749213044176,-480.0,0.00030164,7]
[364705263,1749213044185,-480.0,0.00030164,7]
[364705265,1749213044194,-480.0,0.00030164,7]
[364705267,1749213044203,-480.0,0.00030164,7]
[364705269,1749213044212,-480.0,0.00030164,7]
[364705271,1749213044222,-480.0,0.00030164,7]
[364705273,1749213044231,-480.0,0.00030164,7]
[364705275,1749213044240,-489.24,0.00030164,7]
[364705277,1749213044250,-480.0,0.00030164,7]
[364705279,1749213044262,-251.61837732,0.00030164,7]
[364705281,1749213044271,-491.05088204,0.00030164,7]
[364705283,1749213044280,-480.0,0.00030164,7]
[364705285,1749213044289,-480.0,0.00030164,7]
[364705287,1749213044299,-480.0,0.00030164,7]
[364705289,1749213044308,-480.0,0.00030164,7]
[364705291,1749213044318,-480.0,0.00030164,7]
[364705293,1749213044327,-483.99946189,0.00030164,7]
[364705295,1749213044336,-480.0,0.00030164,7]
[364705297,1749213044346,-480.0,0.00030164,7]
[364705299,1749213044355,-480.0,0.00030164,7]
[364705301,1749213044365,-487.81856125,0.00030164,7]
[364705303,1749213044374,-480.0,0.00030164,7]
[364705305,1749213044383,-480.0,0.00030164,7]
[364705307,1749213044392,-483.39354451,0.00030164,7]
[364705309,1749213044401,-480.0,0.00030164,7]
[364705311,1749213044410,-480.0,0.00030164,7]
[364705313,1749213044419,-480.0,0.00030164,7]
[364705315,1749213044429,-502.21832714,0.00030164,7]
[364705317,1749213044438,-480.0,0.00030164,7]
[364705319,1749213044447,-480.0,0.00030164,7]
[364705321,1749213044456,-480.0,0.00030164,7]
[364705323,1749213044465,-1043.98,0.00030164,7]
[364705325,1749213044474,-480.0,0.00030164,7]
[364705327,1749213044484,-480.0,0.00030164,7]
[364705329,1749213044493,-480.0,0.00030164,7]
[364705331,1749213044503,-930.95,0.00030164,7]
[364705334,1749213044514,-480.0,0.00030164,7]
[364705336,1749213044524,-492.10096552,0.00030164,7]
[364705338,1749213044533,-480.0,0.00030164,7]
[364705340,1749213044542,-480.0,0.00030164,7]
[364705341,1749213044551,-480.0,0.00030164,7]
[364705344,1749213044561,-348.99824157,0.00030164,7]
[364705345,1749213044570,-480.0,0.00030164,7]
[364705348,1749213044580,-295.60632418,0.00030164,7]
[364705350,1749213044590,-456.48427398,0.00030164,7]
[364705352,1749213044602,-480.0,0.00030164,7]
[364705354,1749213044612,-480.0,0.00030164,7]
[364705356,1749213044621,-620.56550188,0.00030164,7]
[364705358,1749213044630,-207.93167265,0.00030164,7]
[364705359,1749213044640,-480.0,0.00030164,7]
[364705362,1749213044649,-480.0,0.00030164,7]
[364705364,1749213044658,-480.0,0.00030164,7]
[364705365,1749213044668,-482.98620982,0.00030164,7]
[364705367,1749213044677,-480.0,0.00030164,7]
[364705369,1749213044686,-480.0,0.00030164,7]
[364705370,1749213044696,-480.0,0.00030164,7]
[364705371,1749213044705,-480.0,0.00030164,7]
[364705372,1749213044714,-480.0,0.00030164,7]
[364705373,1749213044723,-480.0,0.00030164,7]
[364705374,1749213044732,-480.0,0.00030164,7]
[364705375,1749213044741,-480.0,0.00030164,7]
[364705376,1749213044750,-480.0,0.00030164,7]
[364705377,1749213044762,-486.43758085,0.00030164,7]
[364705378,1749213044771,-480.0,0.00030164,7]
[364705379,1749213044780,-480.0,0.00030164,7]
[364705380,1749213044789,-356.46533036,0.00030164,7]
[364705381,1749213044799,-480.0,0.00030164,7]
[364705383,1749213044808,-509.88882083,0.00030164,7]
[364705385,1749213044818,-480.0,0.00030164,7]
[364705387,1749213044827,-155.79641091,0.00030164,7]
[364705389,1749213044836,-485.54724894,0.00030164,7]
[364705391,1749213044846,-484.47396071,0.00030164,7]
[364705393,1749213044857,-432.69766083,0.00030164,7]
[364705395,1749213044867,-480.0,0.00030164,7]
[364705397,1749213044876,-514.49011426,0.00030164,7]
[364705399,1749213044885,-480.0,0.00030164,7]
[364705401,1749213044896,-480.0,0.00030164,7]
[364705403,1749213044905,-474.74908371,0.00030164,7]
[364705405,1749213044914,-480.0,0.00030164,7]
[364705407,1749213044924,-487.54450385,0.00030164,7]
[364705409,1749213044933,-480.0,0.00030164,7]
[364705411,1749213044942,-486.25455244,0.00030164,7]
[364705413,1749213044951,-504.60064045,0.00030164,7]
[364705415,1749213044960,-492.39931651,0.00030164,7]
[364705417,1749213044969,-480.0,0.00030164,7]
[364705419,1749213044979,-480.0,0.00030164,7]
[364705421,1749213044988,-480.0,0.00030164,7]
[364705423,1749213044997,-480.0,0.00030164,7]
[364705425,1749213045006,-480.0,0.00030164,7]
[364705427,1749213045018,-480.0,0.00030164,7]
[364705429,1749213045027,-494.55999341,0.00030164,7]
[364705431,1749213045036,-480.0,0.00030164,7]
[364705433,1749213045046,-480.0,0.00030164,7]
[364705435,1749213045055,-496.22897132,0.00030164,7]
[364705437,1749213045064,-480.0,0.00030164,7]
[364705439,1749213045073,-560.01681825,0.00030164,7]
[364705441,1749213045082,-480.0,0.00030164,7]
[364705443,1749213045092,-495.45435143,0.00030164,7]
[364705445,1749213045101,-496.64962129,0.00030164,7]
[364705447,1749213045111,-480.0,0.00030164,7]
[364705449,1749213045120,-480.0,0.00030164,7]
[364705451,1749213045129,-498.62490576,0.00030164,7]
[364705453,1749213045138,-489.95522101,0.00030164,7]
[364705455,1749213045147,-494.51200056,0.00030164,7]
[364705457,1749213045157,-480.0,0.00030164,7]
[364705459,1749213045165,-489.44083211,0.00030164,7]
[364705461,1749213045174,-480.0,0.00030164,7]
[364705463,1749213045184,-480.0,0.00030164,7]
[364705465,1749213045193,-153.846551,0.00030164,7]
[364705467,1749213045202,-165.69601541,0.00030164,7]
[364705469,1749213045211,-480.0,0.00030164,7]
[364705471,1749213045222,-480.0,0.00030164,7]
[364705473,1749213045231,-495.7120733,0.00030164,7]
[364705475,1749213045240,-480.0,0.00030164,7]
[364705477,1749213045249,-480.0,0.00030164,7]
[364705479,1749213045258,-152.50780307,0.00030164,7]
[364705481,1749213045269,-480.0,0.00030164,7]
[364705483,1749213045278,-495.36474966,0.00030164,7]
[364705485,1749213045287,-607.32,0.00030164,7]
[364705487,1749213045297,-480.0,0.00030164,7]
[364705489,1749213045306,-480.0,0.00030164,7]
[364705491,1749213045315,-480.0,0.00030164,7]
[364705493,1749213045325,-480.0,0.00030164,7]
[364705495,1749213045334,-497.50829364,0.00030164,7]
[364705497,1749213045343,-2388.759256,0.00030164,7]
[364705499,1749213045352,-480.0,0.00030164,7]
[364705502,1749213045361,-480.0,0.00030164,7]
[364705505,1749213045370,-480.0,0.00030164,7]
[364705507,1749213045379,-378.86639128,0.00030164,7]
[364705509,1749213045388,-480.0,0.00030164,7]
[364705511,1749213045397,-535.07,0.00030164,7]
[364705513,1749213045407,-497.91163239,0.00030164,7]
[364705516,1749213045420,-480.0,0.00030164,7]
[364705518,1749213045429,-2222.552055,0.00030164,7]
[364705520,1749213045439,-489.00516933,0.00030164,7]
[364705522,1749213045448,-303.9669851,0.00030164,7]
[364705524,1749213045457,-497.77677999,0.00030164,7]
[364705526,1749213045467,-1000.0,0.00030164,7]
[364705528,1749213045476,-499.96858413,0.00030164,7]
[364705530,1749213045486,-174.639141,0.00030164,7]
[364705532,1749213045496,-162.836284,0.00030164,7]
[364705534,1749213045505,-480.0,0.00030164,7]
[364705536,1749213045519,-480.0,0.00030164,7]
[364705538,1749213045527,-743.81,0.00030164,7]
[364705540,1749213045537,-480.0,0.00030164,7]
[364705542,1749213045546,-480.0,0.00030164,7]
[364705544,1749213045555,-480.0,0.00030164,7]
[364705546,1749213045565,-415.89428044,0.00030164,7]
[364705548,1749213045575,-427.64601858,0.00030164,7]
[364705552,1749213045585,-480.0,0.00030164,7]
[364705553,1749213045598,-480.0,0.00030164,7]
[364705556,1749213045608,-755.4,0.00030164,7]
[364705557,1749213045617,-480.0,0.00030164,7]
[364705560,1749213045628,-480.0,0.00030164,7]
[364705561,1749213045638,-480.0,0.00030164,7]
[364705564,1749213045648,-480.0,0.00030164,7]
[364705565,1749213045658,-523.23,0.00030164,7]
[364705569,1749213045668,-547.4,0.00030164,7]
[364705570,1749213045678,-480.0,0.00030164,7]
[364705572,1749213045687,-480.0,0.00030164,7]
[364705574,1749213045697,-491.41990525,0.00030164,7]
[364705577,1749213045706,-480.0,0.00030164,7]
[364705579,1749213045716,-1066.34,0.00030164,7]
[364705581,1749213045725,-480.0,0.00030164,7]
[364705582,1749213045734,-500.0,0.00030164,7]
[364705584,1749213045743,-493.81184276,0.00030164,7]
[364705587,1749213045752,-150.0,0.00030164,7]